bitfinex/quotes_ETHUSD_20220119
["timestamp","ask_amount","ask_price","bid_price","bid_amount"]
[1642613941126,0.79892,3130.6,3130.3,2.34947644]
[1642613941422,0.34939739,3130.5,3130.4,0.0073895]
[1642613941624,5.19939739,3130.5,3130.4,0.0073895]
[1642613941825,5.19939739,3130.5,3129.8,0.01080004]
[1642613942023,1.23288719,3130.3,3129.9,2.2991675]
[1642613942424,1.23288719,3130.3,3130.0,0.0096632]
[1642613943026,1.23288719,3130.3,3129.8,0.01080004]
[1642613943425,1.23288719,3130.3,3129.8,0.31080004]
[1642613943626,1.23288719,3130.3,3129.9,0.79883]
[1642613943826,1.23288719,3130.3,3129.9,0.80906162]
[1642613944079,1.23288719,3130.3,3130.0,0.0096632]
[1642613945983,5.95919,3130.1,3130.0,0.0096632]
[1642613946186,5.95919,3130.1,3129.1,0.48587398]
[1642613946187,5.8,3130.0,3129.1,1.28503398]
[1642613946384,5.8,3130.0,3129.0,9.17058973]
[1642613946385,1.59832,3129.9,3129.4,0.01307374]
[1642613946582,2.89832,3129.9,3129.4,0.01307374]
[1642613946781,2.89832,3129.9,3129.1,0.00511581]
[1642613946981,1.50667772,3129.2,3129.1,0.00511581]
[1642613947718,1.0,3129.6,3129.1,0.00511581]
[1642613948121,0.79922,3129.5,3129.1,0.00511581]
[1642613948726,3.90623858,3129.5,3129.1,0.00511581]
[1642613948927,0.74922,3129.5,3129.1,0.00511581]
[1642613949328,1.41498592,3129.2,3129.1,0.00511581]
[1642613949527,2.21424592,3129.2,3129.1,0.00511581]
[1642613950533,0.79926,3129.2,3129.1,0.00511581]
[1642613950732,0.79918,3129.4,3129.1,0.00511581]
[1642613951329,1.09918,3129.4,3129.1,0.00511581]
[1642613951616,1.52498453,3129.3,3129.1,0.00511581]
[1642613952014,2.52498453,3129.3,3129.1,0.00511581]
[1642613953114,2.52498453,3129.3,3128.9,0.00625265]
[1642613954112,4.12359453,3129.3,3128.9,0.00625265]
[1642613954509,7.26842499,3129.3,3128.9,0.00625265]
[1642613954708,7.26842499,3129.3,3128.6,0.00795792]
[1642613954913,4.12359453,3129.3,3128.6,0.00795792]
[1642613955111,0.15919,3129.2,3128.6,0.00795792]
[1642613955323,1.5987,3129.1,3128.6,0.00795792]
[1642613955734,0.79929,3129.1,3128.6,0.00795792]
[1642613957529,1.50532624,3128.7,3128.6,0.00795792]
[1642613957827,0.79929,3129.1,3128.5,0.00852635]
[1642613958827,1.43418118,3128.8,3128.5,0.00852635]
[1642613959278,1.43418118,3128.8,3128.5,0.80776635]
[1642613959477,1.43418118,3128.8,3128.5,0.00852635]
[1642613959478,2.65688118,3128.8,3128.5,0.00852635]
[1642613959676,2.85878118,3128.8,3128.6,0.00795792]
[1642613959876,2.85878118,3128.8,3128.3,0.0096632]
[1642613960478,2.65688118,3128.8,3128.3,0.0096632]
[1642613960676,0.79943,3128.7,3128.3,0.0096632]
[1642613960881,2.33238118,3128.8,3128.3,0.0096632]
[1642613960882,1.43418118,3128.8,3128.3,0.0096632]
[1642613962076,1.43418118,3128.8,3128.4,2.33432427]
[1642613962477,1.43418118,3128.8,3128.5,0.00852635]
[1642613962753,1.43418118,3128.8,3128.6,2.33432427]
[1642613963157,7.41549,3129.2,3128.8,5.8]
[1642613963158,7.2563,3129.2,3128.8,5.8]
[1642613963356,2.5042062,3129.4,3129.1,0.01283059]
[1642613963559,2.5042062,3129.4,3128.9,5.43430237]
[1642613963560,0.15919,3130.5,3129.3,0.01203248]
[1642613963755,6.4614,3130.6,3129.3,0.01203248]
[1642613963756,0.35944526,3130.4,3129.3,0.01203248]
[1642613963955,0.52034053,3130.3,3129.4,2.33772772]
[1642613964154,1.55158639,3130.2,3129.4,2.33772772]
[1642613964353,1.19327798,3130.2,3129.5,0.00284211]
[1642613964554,0.51833155,3130.1,3129.6,0.79892]
[1642613964754,0.51833155,3130.1,3129.5,0.00284211]
[1642613964755,0.95822,3130.1,3129.5,0.00284211]
[1642613964955,0.95822,3130.1,3128.9,0.459]
[1642613964956,18.69,3129.9,3128.9,0.459]
[1642613965153,18.69,3129.9,3129.4,0.00170527]
[1642613965154,0.51807322,3129.8,3129.4,0.00170527]
[1642613965358,1.2389631,3129.6,3129.4,0.00170527]
[1642613965554,6.61788322,3129.5,3128.6,2.0]
[1642613965755,0.79935,3129.3,3128.9,0.00284211]
[1642613966156,1.39935,3129.3,3128.8,0.00341054]
[1642613966354,0.15919,3129.2,3128.7,2.33884891]
[1642613966589,0.15919,3129.2,3128.7,0.00397896]
[1642613966786,0.15919,3129.2,3128.8,0.00341054]
[1642613966988,0.15919,3129.2,3127.9,3.99809997]
[1642613966989,2.66329637,3129.2,3128.7,0.00397896]
[1642613967186,1.0,3129.1,3128.1,2.0]
[1642613967489,1.0,3129.1,3128.2,2.34200361]
[1642613967490,1.34958248,3128.5,3128.2,2.34200361]
[1642613967685,1.59885,3129.0,3128.3,2.33518253]
[1642613967886,1.59885,3129.0,3128.3,2.34143519]
[1642613967887,1.75804,3129.0,3128.3,2.34143519]
[1642613968186,1.75804,3129.0,3128.4,2.34086676]
[1642613968386,1.75804,3129.0,3128.5,2.33518253]
[1642613968691,0.79942,3128.8,3128.6,0.00454738]
[1642613969087,0.79942,3128.8,3128.3,0.00625266]
[1642613969289,3.86696885,3128.4,3128.3,0.00625266]
[1642613969489,4.81246885,3128.4,3128.3,0.00625266]
[1642613969891,5.11246885,3128.4,3128.3,0.00625266]
[1642613970088,5.11246885,3128.4,3127.6,0.01023162]
[1642613970336,5.11246885,3128.4,3127.7,2.33299627]
[1642613970537,5.11246885,3128.4,3127.8,2.33299627]
[1642613970731,5.11246885,3128.4,3127.9,2.33299627]
[1642613970929,5.11246885,3128.4,3127.9,2.34152262]
[1642613971130,5.11246885,3128.4,3128.0,0.00795793]
[1642613971536,5.11246885,3128.4,3127.3,2.76210919]
[1642613971537,0.79963,3128.2,3127.5,0.01080004]
[1642613971737,1.09963,3128.2,3127.6,2.32859758]
[1642613972136,1.09963,3128.2,3127.7,0.0096632]
[1642613972338,1.09963,3128.2,3127.2,9.16538973]
[1642613972339,1.50977673,3127.3,3127.2,9.16538973]
[1642613972554,0.15919,3127.7,3127.2,11.49425704]
[1642613972740,0.15919,3127.7,3127.2,9.16823184]
[1642613973637,1.256083,3127.7,3127.2,9.16823184]
[1642613974284,0.15919,3127.7,3127.2,9.16823184]
[1642613974484,0.00170527,3128.0,3127.2,10.76734184]
[1642613974789,0.00113685,3127.9,3127.3,2.32761746]
[1642613975184,0.00170527,3128.0,3127.4,0.00170527]
[1642613975383,0.00170527,3128.0,3127.5,1.29793078]
[1642613975584,0.00113685,3127.9,3127.6,0.79955]
[1642613975985,5.6959,3128.1,3127.6,0.79955]
[1642613975986,0.00170527,3128.0,3127.6,0.79955]
[1642613976388,0.00113685,3127.9,3127.6,0.79955]
[1642613976784,5.6959,3128.1,3127.6,0.79955]
[1642613976785,0.00170527,3128.0,3127.6,0.79955]
[1642613976984,0.00170527,3128.0,3127.7,2.32333226]
[1642613977183,0.00113685,3127.9,3127.6,0.79955]
[1642613977383,0.00113685,3127.9,3127.6,2.17032744]
[1642613977586,5.6959,3128.1,3127.7,2.32332054]
[1642613977587,0.00170527,3128.0,3127.7,2.32332054]
[1642613977861,0.00113685,3127.9,3127.7,2.32332054]
[1642613978161,5.6959,3128.1,3127.7,2.32332054]
[1642613978162,0.00170527,3128.0,3127.7,2.32332054]
[1642613978359,0.00170527,3128.0,3127.6,0.79955]
[1642613978563,0.00113685,3127.9,3127.6,0.79955]
[1642613978972,0.00170527,3128.0,3127.6,0.79955]
[1642613979366,0.00113685,3127.9,3127.8,1.1021267]
[1642613979766,0.00113685,3127.9,3127.7,2.3233882]
[1642613980068,0.00113685,3127.9,3127.8,2.32334679]
[1642613980471,0.00113685,3127.9,3127.7,2.32334679]
[1642613980670,0.00113685,3127.9,3127.4,5.56681527]
[1642613980870,1.452142,3127.9,3127.4,5.56681527]
[1642613981069,1.452142,3127.9,3127.5,0.00113684]
[1642613981506,1.452142,3127.9,3127.0,5.87524836]
[1642613981705,0.00170527,3127.8,3127.3,0.79965]
[1642613981911,0.00170527,3127.8,3127.4,2.32405738]
[1642613982107,0.00113684,3127.7,3127.4,2.32405738]
[1642613982308,0.00113684,3127.7,3127.3,0.79965]
[1642613982508,0.00227369,3127.9,3127.3,0.79965]
[1642613982711,0.79964,3127.8,3127.3,0.79965]
[1642613982907,0.80134527,3127.8,3127.4,2.3247225]
[1642613983112,0.00113684,3127.7,3127.4,2.3247225]
[1642613983507,0.00284211,3128.0,3127.4,2.3247225]
[1642613983706,0.30284211,3128.0,3127.4,2.3247225]
[1642613983906,0.00227369,3127.9,3127.4,2.2747225]
[1642613984112,0.00227369,3127.9,3127.3,2.28305535]
[1642613984306,0.00170527,3127.8,3127.3,2.28305535]
[1642613984708,0.15919,3128.3,3127.3,2.28305535]
[1642613984709,7.30599,3128.6,3127.4,3.33120856]
[1642613984909,5.7432,3129.2,3127.6,0.79929]
[1642613985107,5.7432,3129.2,3127.5,5.8]
[1642613985108,0.00113685,3127.9,3127.7,7.32]
[1642613985737,0.00113685,3127.9,3127.5,0.46013684]
[1642613986237,0.00113685,3127.9,3127.8,1.59864]
[1642613986642,0.00113685,3127.9,3127.5,0.00113684]
[1642613987036,0.00113685,3127.9,3127.4,0.80130527]
[1642613987238,0.00113685,3127.9,3127.5,0.00113684]
[1642613987439,0.00113685,3127.9,3127.6,1.59901]
[1642613987839,1.48576754,3127.9,3127.6,1.59901]
[1642613988640,1.48576754,3127.9,3127.5,0.00113684]
[1642613989083,2.28538754,3127.9,3127.4,0.00170527]
[1642613989483,3.58538754,3127.9,3127.4,0.00170527]
[1642613989684,0.15919,3127.8,3127.1,0.00341054]
[1642613989883,0.15919,3127.8,3126.7,0.79979]
[1642613989884,5.8,3127.7,3126.7,0.79979]
[1642613990084,1.0,3127.6,3126.7,0.80206369]
[1642613990286,1.00284212,3127.6,3126.7,0.80206369]
[1642613990483,0.79983,3127.2,3126.7,0.80206369]
[1642613991087,0.79983,3127.2,3126.7,0.00227369]
[1642613991289,0.3,3127.1,3126.7,0.00227369]
[1642613991489,0.3,3127.1,3126.4,0.00397896]
[1642613991685,0.79994,3126.9,3126.3,0.00454738]
[1642613992286,1.10314518,3126.6,3126.3,0.00454738]
[1642613992490,3.08704152,3126.5,3126.3,0.00454738]
[1642613992734,1.88634518,3126.6,3126.3,0.00454738]
[1642613992932,1.88634518,3126.6,3126.2,0.00511581]
[1642613993130,1.88634518,3126.6,3125.8,0.79997]
[1642613993131,1.88634518,3126.6,3125.9,0.00682108]
[1642613993533,0.79997,3126.5,3125.9,0.00682108]
[1642613993935,0.79997,3126.5,3126.4,1.40493535]
[1642613994137,5.6505,3126.8,3126.4,1.40493535]
[1642613994338,7.9174,3127.2,3126.4,1.40891431]
[1642613994543,7.9174,3127.2,3126.5,0.00341054]
[1642613994738,7.9174,3127.2,3126.8,1.40367572]
[1642613995136,7.9174,3127.2,3126.9,0.00113684]
[1642613995837,9.51707,3127.2,3126.9,0.00113684]
[1642613996044,9.51707,3127.2,3126.5,0.00341054]
[1642613996242,9.51707,3127.2,3126.6,0.79975]
[1642613996684,0.029874,3127.1,3126.8,1.41295049]
[1642613997192,0.029874,3127.1,3126.9,0.00113684]
[1642613997384,0.029874,3127.1,3126.9,0.81305156]
[1642613998390,0.029874,3127.1,3126.9,0.00113684]
[1642613999894,0.029874,3127.1,3126.9,0.30113684]
[1642614000098,0.0022737,3127.5,3126.9,0.30113684]
[1642614000099,0.0022737,3127.5,3127.0,5.8]
[1642614000343,0.0022737,3127.5,3127.1,0.459]
[1642614000546,5.6319,3128.7,3127.2,5.8]
[1642614000741,5.6319,3128.7,3127.3,0.459]
[1642614000939,0.00682109,3128.6,3127.6,0.79949]
[1642614001141,0.00682109,3128.6,3127.7,1.49942916]
[1642614001341,1.3264133,3128.5,3128.1,1.21301911]
[1642614001641,1.3264133,3128.5,3127.7,1.49942916]
[1642614001642,0.80514424,3128.4,3127.7,1.49942916]
[1642614001841,0.80514424,3128.4,3127.6,0.79949]
[1642614002140,0.00511581,3128.3,3127.6,0.79949]
[1642614002551,0.00454739,3128.2,3127.6,0.79949]
[1642614002843,0.00397897,3128.1,3127.7,3.04402196]
[1642614003049,0.00397897,3128.1,3127.8,1.0]
[1642614003242,0.00341054,3128.0,3127.9,3.40779129]
[1642614003443,0.00341054,3128.0,3127.9,6.9386018]
[1642614003641,11.1059,3129.2,3129.1,1.13766355]
[1642614003847,11.1059,3129.2,3127.9,6.85182955]
[1642614003848,6.65868163,3129.7,3128.9,0.79912]
[1642614004102,0.00625266,3129.1,3128.9,0.79912]
[1642614004303,0.00625266,3129.1,3128.8,1.59824]
[1642614004502,0.00568424,3129.0,3128.3,1.0]
[1642614004702,0.00568424,3129.0,3128.3,1.6]
[1642614004908,0.00511582,3128.9,3128.6,1.37722552]
[1642614005302,0.00454739,3128.8,3128.3,1.6]
[1642614005503,0.00454739,3128.8,3128.1,4.60466]
[1642614005706,0.00397897,3128.7,3128.1,4.60466]
[1642614006103,0.00341055,3128.6,3128.1,4.60466]
[1642614006505,0.00284212,3128.5,3128.2,1.1063367]
[1642614006707,0.00284212,3128.5,3128.3,2.25979773]
[1642614006907,0.0022737,3128.4,3128.3,2.25979773]
[1642614007106,0.0022737,3128.4,3128.1,4.60466]
[1642614007510,0.00170527,3128.3,3128.1,4.60466]
[1642614007745,0.00170527,3128.3,3128.2,5.61102648]
[1642614007945,0.43073381,3129.1,3128.2,5.61102648]
[1642614008147,0.43073381,3129.0,3128.9,1.23044823]
[1642614008347,0.43073381,3129.0,3128.9,2.45117839]
[1642614008549,0.00625266,3129.1,3128.9,2.45117839]
[1642614010548,16.741,3129.7,3129.0,2.75]
[1642614010751,16.741,3129.7,3128.9,2.45117839]
[1642614010752,0.43211532,3129.6,3129.1,0.79898]
[1642614010952,0.43495744,3129.6,3129.1,0.79898]
[1642614011154,0.43495744,3129.6,3129.1,0.78767928]
[1642614011591,0.43495744,3129.6,3128.9,1.59795]
[1642614011798,0.79919,3129.5,3128.6,0.759]
[1642614011996,0.43211532,3129.4,3128.8,0.79922]
[1642614012199,0.43382059,3129.4,3128.8,0.79922]
[1642614012399,0.43325217,3129.3,3128.9,0.00113684]
[1642614012598,0.00113685,3129.3,3129.0,1.26671304]
[1642614012802,0.00113685,3129.3,3129.2,1.40447752]
[1642614016644,0.00113685,3129.3,3129.1,0.79907]
[1642614018850,1.36184089,3129.2,3129.1,0.79907]
[1642614019103,1.36184089,3129.2,3128.9,0.00113684]
[1642614019304,0.79926,3129.1,3128.9,0.00113684]
[1642614019702,0.79926,3129.1,3128.6,0.00284211]
[1642614020205,1.36184089,3129.2,3128.6,0.00284211]
[1642614020408,0.79926,3129.1,3128.6,0.00284211]
[1642614022505,0.74026,3129.1,3128.5,0.00341054]
[1642614022753,0.42771453,3129.0,3128.5,0.00341054]
[1642614022955,0.42771453,3129.0,3128.4,0.00397896]
[1642614023654,1.59883,3128.9,3128.4,0.00397896]
[1642614023852,1.10943664,3128.5,3128.4,0.00397896]
[1642614024054,2.95157664,3128.5,3128.4,0.00397896]
[1642614024454,2.95157664,3128.5,3128.2,0.00511581]
[1642614025255,2.15213664,3128.5,3128.2,0.00511581]
[1642614025459,1.0427,3128.5,3128.2,0.00511581]
[1642614025654,0.79935,3129.0,3128.4,0.79932]
[1642614026057,0.79935,3129.0,3128.5,0.00341054]
[1642614026500,1.15674272,3128.7,3128.5,0.00341054]
[1642614028495,1.95613272,3128.7,3128.5,0.00341054]
[1642614028794,1.95613272,3128.7,3128.2,0.00511581]
[1642614029397,2.11532272,3128.7,3128.2,0.00511581]
[1642614029598,2.41532272,3128.7,3128.2,0.00511581]
[1642614029800,12.9044,3129.2,3128.2,3.90849928]
[1642614030002,12.9044,3129.2,3128.5,1.59837]
[1642614030446,12.9044,3129.2,3128.6,0.00284211]
[1642614030845,1.37342669,3129.1,3128.6,0.00284211]
[1642614031448,1.37342669,3129.1,3128.7,0.79917]
[1642614031847,1.37342669,3129.1,3128.8,0.00170527]
[1642614033054,0.42287221,3129.0,3128.8,0.00170527]
[1642614033260,5.85919,3128.9,3128.8,0.00170527]
[1642614033453,6.28206221,3128.9,3128.2,0.00511581]
[1642614033655,5.85919,3128.9,3128.2,0.00511581]
[1642614034107,1.34744542,3128.4,3128.2,0.00511581]
[1642614035308,4.6,3128.3,3127.2,1.59913]
[1642614035508,5.82369,3128.3,3127.3,2.26072425]
[1642614035811,5.6645,3128.3,3127.4,2.26072425]
[1642614036010,7.2479,3128.2,3127.4,2.26072425]
[1642614036208,1.4500059,3127.7,3127.5,0.00397896]
[1642614036409,8.2479,3128.2,3127.5,0.00397896]
[1642614036410,14.0276,3128.2,3127.5,0.00397896]
[1642614036808,14.0276,3128.2,3127.4,0.00454739]
[1642614037010,0.15919,3128.1,3127.4,0.00454739]
[1642614037211,0.15919,3128.1,3127.1,0.00625266]
[1642614037411,0.15919,3128.1,3127.4,1.59895]
[1642614037746,0.15919,3128.1,3127.5,2.26573713]
[1642614037747,1.15179051,3127.9,3127.5,2.26573713]
[1642614037948,1.15179051,3127.9,3127.6,2.26175817]
[1642614038149,1.15179051,3127.9,3127.6,0.00341054]
[1642614038351,1.15179051,3127.9,3127.4,1.59895]
[1642614038352,1.15179051,3127.9,3127.7,0.00284212]
[1642614038549,1.15179051,3127.9,3127.5,2.26115737]
[1642614038550,1.15179051,3127.9,3127.5,2.26513633]
[1642614038768,1.15179051,3127.9,3127.6,0.00341054]
[1642614039152,1.15179051,3127.9,3127.5,0.00397896]
[1642614041053,0.79956,3128.0,3127.5,0.00397896]
[1642614041256,0.79956,3128.0,3127.6,2.26247864]
[1642614041515,0.79956,3128.0,3127.5,0.00397896]
[1642614041702,0.15983,3127.9,3127.7,0.00284212]
[1642614041903,0.15983,3127.9,3127.5,0.00397896]
[1642614042102,0.15983,3127.9,3127.7,0.00284212]
[1642614042503,7.0494,3127.8,3127.7,0.00284212]
[1642614042704,7.0494,3127.8,3127.4,0.00454739]
[1642614042903,2.48587845,3127.7,3127.4,0.00454739]
[1642614043106,5.95983,3127.5,3127.4,0.00454739]
[1642614043304,5.95983,3127.5,3127.1,0.00625266]
[1642614043508,2.59969,3127.4,3126.8,0.00795793]
[1642614043704,7.9223,3127.3,3126.5,0.0096632]
[1642614043904,2.2918062,3127.1,3126.5,0.0096632]
[1642614044109,0.15983,3127.0,3126.5,0.0096632]
[1642614044311,0.15983,3127.0,3126.6,2.23497894]
[1642614044509,0.15983,3127.0,3126.5,0.0096632]
[1642614044709,0.15983,3127.0,3126.7,0.00852635]
[1642614044909,0.15983,3126.8,3126.2,0.01136847]
[1642614045112,0.79996,3126.7,3126.3,2.23334588]
[1642614045551,0.79996,3126.7,3126.4,0.01023162]
[1642614045749,1.59984,3127.0,3126.4,0.01023162]
[1642614045750,1.59984,3127.0,3126.5,0.79986]
[1642614045952,8.2019,3127.3,3126.5,0.79986]
[1642614045953,7.9223,3127.3,3126.6,2.23102521]
[1642614046161,7.9223,3127.3,3126.6,2.24011998]
[1642614046354,7.9223,3127.3,3126.2,2.96990617]
[1642614046355,7.9223,3127.3,3126.7,2.23955156]
[1642614046557,7.9223,3127.3,3126.7,1.4530437]
[1642614046757,7.9223,3127.3,3126.8,0.00795793]
[1642614047458,8.72204,3127.3,3126.8,0.00795793]
[1642614047655,7.9223,3127.3,3126.9,2.22885441]
[1642614047855,7.9223,3127.3,3126.8,0.80760023]
[1642614048058,7.9223,3127.3,3127.0,0.00682108]
[1642614048256,7.9223,3127.3,3126.9,0.0073895]
[1642614048456,7.9223,3127.3,3127.0,0.00682108]
[1642614048659,7.9223,3127.3,3126.9,0.0073895]
[1642614048855,7.9223,3127.3,3126.8,0.00795793]
[1642614049319,8.7747,3127.3,3126.8,0.00795793]
[1642614049516,11.94751355,3127.3,3126.7,0.00852635]
[1642614049716,0.15983,3127.2,3126.7,0.00852635]
[1642614050019,1.38941794,3127.0,3126.7,0.00852635]
[1642614050216,0.79985,3126.9,3126.7,0.00852635]
[1642614050816,1.09985,3126.9,3126.7,0.00852635]
[1642614051026,1.09985,3126.9,3126.4,0.01023162]
[1642614051618,1.91345,3126.9,3126.4,0.01023162]
[1642614052016,0.15983,3126.8,3126.2,0.01136847]
[1642614052219,0.15983,3126.8,3126.2,1.47925865]
[1642614052517,3.21345,3126.9,3126.3,2.23571795]
[1642614052518,1.09985,3126.9,3126.3,2.23571795]
[1642614052754,1.09985,3126.9,3126.2,2.26776018]
[1642614052755,1.09985,3126.9,3126.2,2.22856022]
[1642614053053,0.00284211,3126.8,3126.3,2.22426878]
[1642614053453,0.00227369,3126.7,3126.3,2.22426878]
[1642614053654,0.79993,3126.6,3126.2,0.76067004]
[1642614053857,0.80163527,3126.6,3126.2,0.76067004]
[1642614054058,0.00113684,3126.5,3126.2,0.76067004]
[1642614054456,0.00113684,3126.5,3126.2,1.84996518]
[1642614054656,0.00113684,3126.5,3126.3,3.69397902]
[1642614054856,0.00113684,3126.5,3126.2,0.76067004]
[1642614056523,0.00113684,3126.5,3126.1,1.59976]
[1642614056706,1.05323684,3126.5,3126.1,1.59976]
[1642614057309,0.79998,3126.4,3126.1,1.59976]
[1642614057908,1.33596092,3126.2,3125.8,10.76532973]
[1642614058108,1.63596092,3126.2,3125.8,10.76532973]
[1642614058308,7.9098,3126.4,3125.9,0.0022737]
[1642614058509,8.2098,3126.4,3125.9,0.8022237]
[1642614058710,1.0,3126.3,3125.9,0.8022237]
[1642614058909,8.2098,3126.4,3126.0,0.00170527]
[1642614059314,9.0779972,3126.4,3126.0,0.00170527]
[1642614059614,7.9098,3126.4,3126.0,0.00170527]
[1642614060259,8.2098,3126.4,3126.0,0.00170527]
[1642614060460,7.9098,3126.4,3126.0,0.00170527]
[1642614060661,8.2098,3126.4,3126.0,0.00170527]
[1642614061061,7.9098,3126.4,3126.0,0.00170527]
[1642614061263,7.9098,3126.4,3126.0,2.22431695]
[1642614061462,7.9098,3126.4,3126.0,0.00170527]
[1642614061665,8.70979,3126.4,3126.1,0.00113685]
[1642614061860,8.70979,3126.4,3126.0,0.00170527]
[1642614062463,8.70979,3126.4,3126.1,0.79996]
[1642614063065,8.70979,3126.4,3126.0,0.00170527]
[1642614063066,4.37565828,3126.3,3126.0,0.00170527]
[1642614063270,1.60028,3126.2,3126.0,0.00170527]
[1642614063465,6.75996,3126.1,3126.0,0.00170527]
[1642614063666,7.75996,3126.1,3126.0,0.00170527]
[1642614064311,9.15773104,3126.1,3126.0,0.00170527]
[1642614064909,9.45773104,3126.1,3126.0,0.00170527]
[1642614065408,12.84745301,3126.1,3126.0,0.00170527]
[1642614065609,9.45773104,3126.1,3126.0,0.00170527]
[1642614065809,9.15773104,3126.1,3126.0,0.00170527]
[1642614066011,1.15983,3126.1,3126.0,0.00170527]
[1642614066409,0.15983,3126.1,3126.0,0.00170527]
[1642614066610,0.45983,3126.1,3126.0,0.00170527]
[1642614066812,0.15983,3126.1,3126.0,0.00170527]
[1642614067210,4.85983,3126.1,3126.0,0.00170527]
[1642614067409,6.54490289,3126.1,3126.0,0.00170527]
[1642614067611,7.54490289,3126.1,3126.0,0.00170527]
[1642614068055,10.67841309,3126.1,3126.0,0.00170527]
[1642614068259,10.72851291,3126.1,3125.7,0.80011]
[1642614068462,5.55015,3125.9,3125.8,0.00284212]
[1642614068862,5.85015,3125.9,3125.8,0.00284212]
[1642614069061,6.00998,3125.9,3125.8,0.00284212]
[1642614070462,0.45983,3125.9,3125.8,0.00284212]
[1642614070664,0.45983,3125.9,3125.7,0.70295212]
[1642614072845,0.80001,3126.3,3125.7,0.70295212]
[1642614073049,7.9098,3126.4,3125.7,1.00295212]
[1642614073248,0.00227369,3126.2,3125.8,1.5998]
[1642614073447,0.00284212,3126.3,3125.8,1.5998]
[1642614073646,7.9098,3126.4,3125.8,1.5998]
[1642614073647,0.00170527,3126.1,3125.8,1.5998]
[1642614073848,0.00227369,3126.2,3125.9,2.25596322]
[1642614074046,0.00113685,3126.0,3125.8,3.9581533]
[1642614074248,0.00170527,3126.1,3125.8,3.9581533]
[1642614074447,0.00284212,3126.3,3125.9,2.25595904]
[1642614074651,0.00113685,3126.0,3125.8,4.7580218]
[1642614074847,7.9098,3126.4,3125.8,4.7580218]
[1642614074848,7.9098,3126.4,3125.9,6.35688486]
[1642614075047,7.9098,3126.4,3125.9,0.79986]
[1642614075253,0.00170527,3126.3,3125.9,0.79986]
[1642614075654,0.00113684,3126.2,3125.9,0.79986]
[1642614077465,0.00113684,3126.2,3126.0,2.26204754]
[1642614078463,0.00113684,3126.2,3125.9,0.79986]
[1642614078667,0.80117684,3126.2,3125.9,0.79986]
[1642614079427,0.80117684,3126.2,3126.0,2.2638197]
[1642614079831,0.80117684,3126.2,3125.9,0.79986]
[1642614080235,0.80117684,3126.2,3125.5,1.60015]
[1642614080236,1.40245812,3126.0,3125.5,1.60015]
[1642614080434,0.80021,3125.9,3125.6,2.26248917]
[1642614080636,0.80021,3125.9,3125.6,0.0022737]
[1642614080637,0.96004,3125.9,3125.6,0.0022737]
[1642614080834,1.96004,3125.9,3125.6,0.0022737]
[1642614081035,1.96004,3125.9,3125.3,0.00397897]
[1642614081230,1.96004,3125.9,3125.2,1.5608176]
[1642614081231,1.16515905,3125.6,3125.4,0.00341055]
[1642614081441,1.16515905,3125.6,3125.2,1.5608176]
[1642614081442,5.70983,3125.5,3125.3,0.00397897]
[1642614081645,7.60043,3125.4,3125.3,0.00397897]
[1642614081833,8.05943,3125.4,3125.3,0.00397897]
[1642614082036,5.8,3125.3,3124.0,1.1911]
[1642614082236,19.30883,3125.2,3124.2,2.26395448]
[1642614082440,0.96899976,3124.3,3124.2,2.27020714]
[1642614082638,1.76951976,3124.3,3124.2,2.27020714]
[1642614082868,0.80052,3124.3,3124.2,2.27020714]
[1642614083970,0.238,3124.5,3124.2,2.27020714]
[1642614084169,3.12931095,3124.6,3124.2,2.27020714]
[1642614084170,3.12931095,3124.6,3124.3,2.26395448]
[1642614084369,3.12931095,3124.6,3124.4,2.26437103]
[1642614084370,1.52828095,3124.6,3124.4,2.26437103]
[1642614084570,1.52828095,3124.6,3124.4,2.26948684]
[1642614084769,1.52828095,3124.6,3124.5,2.26891842]
[1642614085369,3.45940933,3125.1,3124.5,2.26891842]
[1642614085370,0.80036,3125.0,3124.5,2.26891842]
[1642614085570,0.3,3125.0,3124.6,2.26437103]
[1642614085771,0.3,3125.0,3124.6,2.26834999]
[1642614086070,0.45983,3125.2,3124.7,2.26778157]
[1642614086269,0.45983,3125.2,3124.8,2.26437103]
[1642614086270,1.45983,3125.2,3124.8,2.26437103]
[1642614086512,1.22368844,3125.1,3124.8,0.00284212]
[1642614086717,5.05034,3125.0,3124.9,0.00227369]
[1642614087018,5.05034,3125.0,3124.7,0.00341054]
[1642614087019,8.16207643,3125.0,3124.7,0.00341054]
[1642614087219,8.16207643,3125.0,3124.7,2.13785108]
[1642614087619,8.16207643,3125.0,3124.0,4.1712]
[1642614087620,8.16207643,3125.0,3124.8,0.00284212]
[1642614087819,6.71267737,3124.9,3124.8,0.00284212]
[1642614088019,6.71267737,3124.9,3124.4,2.13459169]
[1642614088219,1.60105,3124.8,3124.4,2.1397075]
[1642614088418,3.23584456,3124.7,3124.5,2.13913908]
[1642614088621,3.23584456,3124.7,3124.5,0.00454739]
[1642614088818,3.23584456,3124.7,3124.6,0.00397896]
[1642614089020,3.23584456,3124.7,3124.4,0.00511581]
[1642614089021,7.16368864,3124.7,3124.4,0.00511581]
[1642614089219,5.56420864,3124.7,3124.5,2.13367552]
[1642614089418,2.32836408,3124.7,3124.3,0.80049]
[1642614089621,0.00113684,3124.6,3124.4,2.13276741]
[1642614090478,0.00113684,3124.6,3124.3,0.80049]
[1642614091085,0.00113684,3124.6,3124.4,2.08186339]
[1642614091691,5.95983,3124.5,3123.9,0.05005]
[1642614091886,4.47108975,3124.4,3123.9,0.05005]
[1642614092085,1.14838245,3124.1,3124.0,0.00227369]
[1642614092486,4.63876147,3124.1,3124.0,0.00227369]
[1642614092686,1.14838245,3124.1,3124.0,0.00227369]
[1642614093089,0.80067,3124.1,3124.0,0.00227369]
[1642614093285,0.80067,3124.1,3123.9,0.00232369]
[1642614095015,7.1528,3124.3,3123.9,0.00232369]
[1642614095315,0.00113684,3124.2,3123.9,0.00232369]
[1642614095913,0.00113684,3124.2,3123.9,1.60333369]
[1642614096317,0.00113684,3124.2,3124.0,0.3]
[1642614096513,1.15983,3125.1,3124.0,6.1]
[1642614096715,1.15983,3125.1,3124.1,3.04501856]
[1642614096716,0.15983,3125.1,3124.1,3.04501856]
[1642614096914,0.15983,3125.1,3124.1,0.01252854]
[1642614096915,0.00170527,3124.5,3124.1,0.01252854]
[1642614097114,0.00170527,3124.5,3124.3,0.80035]
[1642614097312,7.57353,3125.3,3124.3,0.80035]
[1642614097313,0.00113685,3124.4,3124.3,0.80035]
[1642614097514,7.57353,3125.3,3124.7,1.47610205]
[1642614097963,0.00454739,3125.2,3124.7,1.47610205]